Workbook

Sheet جدول بيانات
B1: مخطط تقدم اللياقة البدنية للرجال
B2: الطول (متر) | C2: 1.90 | D2: ملاحظة: تحقق من تقدمك في "القياسات" و"الوزن - مؤشر كتلة الجسم (BMI)" و"الوزن ودهون الجسم" في المخططات وأوراق العمل الخاصة بهما في هذا المصنف.
B4: التاريخ | C4: الوزن (كجم) | D4: الصدر (سم) | E4: الخصر (سم) | F4: الأرداف (سم) | G4: وزن الجسم المقدر بدون دهون (كجم) | H4: وزن الجسم المقدر بالدهون (كجم) | I4: نسبة الدهون المقدرة في الجسم (كجم) | J4: مؤشر كتلة الجسم المقدرة (مؤشر كتلة الجسم)
B5: =DATE(YEAR(TODAY()),MONTH(TODAY()),1) -> 2018-10-01 | C5: 91.0 | D5: 106.5 | E5: 91.5 | F5: 86.0 | G5: =(1.1*اللياقة[[#This Row],[الوزن (كجم)]])-128*(اللياقة[[#This Row],[الوزن (كجم)]]^2/(100*$C$2)^2) -> 70.7 | H5: =C5-G5 -> 20.3 | I5: =IF(ISERROR((H5*100)/C5),"0.0",(H5*100)/C5)*0.01 -> 22.3% | J5: =(اللياقة[[#This Row],[الوزن (كجم)]]/($C$2*$C$2)) -> 25.2
B6: =DATE(YEAR(TODAY()),MONTH(TODAY()),8) -> 2018-10-08 | C6: 91.0 | D6: 106.5 | E6: 91.5 | F6: 86.0 | G6: =(1.1*اللياقة[[#This Row],[الوزن (كجم)]])-128*(اللياقة[[#This Row],[الوزن (كجم)]]^2/(100*$C$2)^2) -> 70.7 | H6: =C6-G6 -> 20.3 | I6: 22.3% | J6: =(اللياقة[[#This Row],[الوزن (كجم)]]/($C$2*$C$2)) -> 25.2
B7: =DATE(YEAR(TODAY()),MONTH(TODAY()),15) -> 2018-10-15 | C7: 90.5 | D7: 106.5 | E7: 90.0 | F7: 85.0 | G7: =(1.1*اللياقة[[#This Row],[الوزن (كجم)]])-128*(اللياقة[[#This Row],[الوزن (كجم)]]^2/(100*$C$2)^2) -> 70.5 | H7: =C7-G7 -> 20.0 | I7: 22.1% | J7: =(اللياقة[[#This Row],[الوزن (كجم)]]/($C$2*$C$2)) -> 25.1
B8: =DATE(YEAR(TODAY()),MONTH(TODAY()),22) -> 2018-10-22 | C8: 89.5 | D8: 106.5 | E8: 90.0 | F8: 84.0 | G8: =(1.1*اللياقة[[#This Row],[الوزن (كجم)]])-128*(اللياقة[[#This Row],[الوزن (كجم)]]^2/(100*$C$2)^2) -> 70.0 | H8: =C8-G8 -> 19.5 | I8: 21.7% | J8: =(اللياقة[[#This Row],[الوزن (كجم)]]/($C$2*$C$2)) -> 24.8
B9: =DATE(YEAR(TODAY()),MONTH(TODAY()),29) -> 2018-10-29 | C9: 89.5 | D9: 108.0 | E9: 90.0 | F9: 84.0 | G9: =(1.1*اللياقة[[#This Row],[الوزن (كجم)]])-128*(اللياقة[[#This Row],[الوزن (كجم)]]^2/(100*$C$2)^2) -> 70.0 | H9: =C9-G9 -> 19.5 | I9: 21.7% | J9: =(اللياقة[[#This Row],[الوزن (كجم)]]/($C$2*$C$2)) -> 24.8
